[Event "Titled Tuesday Blitz July 4 Late 2023"]
[White "Palencia Morales, Wilson Guillermo"]
[Black "Francisco_Ferrari"]
[WhiteFideId "4401859"]
[WhiteElo "2542"]
[BlackElo "2187"]
[Result "1-0"]
[Round "4"]
[TimeControl "180+2"]
[Date "2023.07.04"]
[WhiteClock "0:00:16"]
[BlackClock "0:00:09"]
[Board "164"]

1. d4 {[%clk 0:02:43]}  Nf6 {[%clk 0:02:59]} 2. c4 {[%clk 0:02:43]}  e6 {[%clk 0:02:58]} 3. Nf3 {[%clk 0:02:42]}  d5 {[%clk 0:02:58]} 4. Nc3 {[%clk 0:02:41]}  Be7 {[%clk 0:02:57]} 5. Bg5 {[%clk 0:02:40]}  O-O {[%clk 0:02:57]} 6. e3 {[%clk 0:02:38]}  h6 {[%clk 0:02:53]} 7. Bxf6 {[%clk 0:02:37]}  Bxf6 {[%clk 0:02:54]} 8. Qc2 {[%clk 0:02:37]}  c6 {[%clk 0:02:35]} 9. h4 {[%clk 0:02:35]}  Nd7 {[%clk 0:02:23]} 10. g4 {[%clk 0:02:34]}  e5 {[%clk 0:02:08]} 11. g5 {[%clk 0:02:22]}  exd4 {[%clk 0:01:57]} 12. gxf6 {[%clk 0:02:06]}  dxc3 {[%clk 0:01:57]} 13. fxg7 {[%clk 0:02:06]}  Re8 {[%clk 0:01:52]} 14. Bd3 {[%clk 0:02:00]}  Nc5 {[%clk 0:01:34]} 15. Bh7+ {[%clk 0:01:42]}  Kxg7 {[%clk 0:01:32]} 16. Rg1+ {[%clk 0:01:42]}  Kh8 {[%clk 0:01:32]} 17. Qxc3+ {[%clk 0:01:24]}  f6 {[%clk 0:01:05]} 18. Bg6 {[%clk 0:01:01]}  Rf8 {[%clk 0:00:34]} 19. O-O-O {[%clk 0:00:59]}  Qe7 {[%clk 0:00:24]} 20. Nd4 {[%clk 0:00:53]}  a5 {[%clk 0:00:18]} 21. cxd5 {[%clk 0:00:36]}  cxd5 {[%clk 0:00:17]} 22. Kb1 {[%clk 0:00:34]}  Bd7 {[%clk 0:00:16]} 23. Qd2 {[%clk 0:00:26]}  Rfc8 {[%clk 0:00:12]} 24. e4 {[%clk 0:00:22]}  Qg7 {[%clk 0:00:08]} 25. exd5 {[%clk 0:00:19]}  Re8 {[%clk 0:00:07]} 26. Ka1 {[%clk 0:00:18]}  Ne4 {[%clk 0:00:06]} 27. Bxe4 {[%clk 0:00:17]}  Rxe4 {[%clk 0:00:07]} 28. Rxg7 {[%clk 0:00:17]}  Kxg7 {[%clk 0:00:08]} 29. Rg1+ {[%clk 0:00:17]}  Rg4 {[%clk 0:00:09]} 30. Rxg4+ {[%clk 0:00:17]}  Bxg4 {[%clk 0:00:10]} 31. Ne6+ {[%clk 0:00:16]}  Kf7 {[%clk 0:00:09]} 32. Qxh6 {[%clk 0:00:16]}  Re8 {[%clk 0:00:09]} 33. Qg7# {[%clk 0:00:16]} 1-0


[Site "https://www.chess.com"]

[Event "Titled Tuesday Blitz July 4 Late 2023"]
[White "Cueto, Jonny"]
[Black "Deng, Henry"]
[WhiteFideId "3300145"]
[BlackFideId "30965454"]
[WhiteElo "2187"]
[BlackElo "2482"]
[Result "0-1"]
[Round "4"]
[TimeControl "180+2"]
[Date "2023.07.04"]
[WhiteClock "0:00:05"]
[BlackClock "0:00:13"]
[Board "165"]

1. d4 {[%clk 0:02:58]}  d5 {[%clk 0:02:59]} 2. Bf4 {[%clk 0:02:58]}  c5 {[%clk 0:02:58]} 3. e3 {[%clk 0:02:59]}  Nc6 {[%clk 0:02:57]} 4. Nf3 {[%clk 0:02:59]}  Bf5 {[%clk 0:02:56]} 5. dxc5 {[%clk 0:02:59]}  e6 {[%clk 0:02:53]} 6. Nd4 {[%clk 0:02:59]}  Bg6 {[%clk 0:02:24]} 7. Nxc6 {[%clk 0:02:59]}  bxc6 {[%clk 0:02:25]} 8. b4 {[%clk 0:02:59]}  a5 {[%clk 0:02:21]} 9. c3 {[%clk 0:02:59]}  Qf6 {[%clk 0:02:16]} 10. Qd4 {[%clk 0:02:51]}  Qd8 {[%clk 0:01:59]} 11. Nd2 {[%clk 0:02:46]}  f6 {[%clk 0:01:59]} 12. Bg3 {[%clk 0:02:23]}  e5 {[%clk 0:01:58]} 13. Qg4 {[%clk 0:02:21]}  Ne7 {[%clk 0:01:48]} 14. Qd1 {[%clk 0:02:05]}  Nf5 {[%clk 0:01:40]} 15. Be2 {[%clk 0:02:05]}  h5 {[%clk 0:01:40]} 16. h3 {[%clk 0:01:59]}  Nxg3 {[%clk 0:01:38]} 17. fxg3 {[%clk 0:02:00]}  Be7 {[%clk 0:01:15]} 18. O-O {[%clk 0:01:59]}  Qd7 {[%clk 0:01:06]} 19. a3 {[%clk 0:01:46]}  f5 {[%clk 0:00:50]} 20. c4 {[%clk 0:01:23]}  Bg5 {[%clk 0:00:47]} 21. cxd5 {[%clk 0:01:18]}  Bxe3+ {[%clk 0:00:44]} 22. Kh1 {[%clk 0:01:19]}  cxd5 {[%clk 0:00:32]} 23. Nf3 {[%clk 0:01:01]}  Qe6 {[%clk 0:00:22]} 24. Bb5+ {[%clk 0:00:58]}  Kf7 {[%clk 0:00:22]} 25. Nh4 {[%clk 0:00:55]}  Rhd8 {[%clk 0:00:20]} 26. Qf3 {[%clk 0:00:49]}  Bg5 {[%clk 0:00:17]} 27. Nxg6 {[%clk 0:00:49]}  Kxg6 {[%clk 0:00:17]} 28. Rae1 {[%clk 0:00:42]}  e4 {[%clk 0:00:17]} 29. Qe2 {[%clk 0:00:40]}  d4 {[%clk 0:00:18]} 30. h4 {[%clk 0:00:36]}  Bf6 {[%clk 0:00:17]} 31. Bc4 {[%clk 0:00:34]}  Qe5 {[%clk 0:00:17]} 32. Qf2 {[%clk 0:00:33]}  d3 {[%clk 0:00:17]} 33. Rd1 {[%clk 0:00:33]}  Rd4 {[%clk 0:00:16]} 34. Bb3 {[%clk 0:00:31]}  e3 {[%clk 0:00:17]} 35. Qf4 {[%clk 0:00:31]}  e2 {[%clk 0:00:15]} 36. Qd2 {[%clk 0:00:25]}  exd1=Q {[%clk 0:00:14]} 37. Rxd1 {[%clk 0:00:25]}  Qxg3 {[%clk 0:00:14]} 38. Re1 {[%clk 0:00:05]}  Rxh4+ {[%clk 0:00:13]} 39. Kg1 {[%clk 0:00:06]}  Bd4+ {[%clk 0:00:13]} 40. Kf1 {[%clk 0:00:05]}  Rh1# {[%clk 0:00:13]} 0-1


[Site "https://www.chess.com"]

[Event "Titled Tuesday Blitz July 4 Late 2023"]
[White "Djordjevic, Dejan N"]
[Black "texie1"]
[WhiteFideId "913316"]
[WhiteElo "2168"]
[BlackElo "2420"]
[Result "0-1"]
[Round "4"]
[TimeControl "180+2"]
[Date "2023.07.04"]
[WhiteClock "0:00:00"]
[BlackClock "0:00:24"]
[Board "166"]

1. e4 {[%clk 0:03:00]}  c5 {[%clk 0:02:59]} 2. Nc3 {[%clk 0:03:00]}  a6 {[%clk 0:02:59]} 3. g3 {[%clk 0:03:00]}  b5 {[%clk 0:02:59]} 4. Bg2 {[%clk 0:03:01]}  Bb7 {[%clk 0:02:59]} 5. Nge2 {[%clk 0:03:01]}  e6 {[%clk 0:02:59]} 6. d3 {[%clk 0:03:01]}  g6 {[%clk 0:02:53]} 7. d4 {[%clk 0:03:00]}  b4 {[%clk 0:02:48]} 8. Na4 {[%clk 0:02:59]}  c4 {[%clk 0:02:38]} 9. d5 {[%clk 0:02:49]}  d6 {[%clk 0:02:28]} 10. Qd4 {[%clk 0:02:48]}  e5 {[%clk 0:02:28]} 11. Qxc4 {[%clk 0:02:48]}  a5 {[%clk 0:02:25]} 12. Qb5+ {[%clk 0:02:29]}  Qd7 {[%clk 0:02:25]} 13. Qxd7+ {[%clk 0:02:26]}  Nxd7 {[%clk 0:02:26]} 14. Be3 {[%clk 0:02:24]}  Bh6 {[%clk 0:02:20]} 15. f4 {[%clk 0:02:20]}  Ne7 {[%clk 0:02:09]} 16. c4 {[%clk 0:02:17]}  O-O {[%clk 0:01:57]} 17. Kd2 {[%clk 0:02:12]}  f5 {[%clk 0:01:46]} 18. Rhf1 {[%clk 0:01:50]}  exf4 {[%clk 0:01:40]} 19. gxf4 {[%clk 0:01:38]}  fxe4 {[%clk 0:01:40]} 20. Bxe4 {[%clk 0:01:37]}  Rae8 {[%clk 0:01:37]} 21. Nd4 {[%clk 0:01:29]}  Nf5 {[%clk 0:01:23]} 22. Bxf5 {[%clk 0:01:24]}  gxf5 {[%clk 0:01:18]} 23. Rg1+ {[%clk 0:01:15]}  Kh8 {[%clk 0:01:15]} 24. Ne6 {[%clk 0:01:15]}  Rf6 {[%clk 0:01:15]} 25. Bd4 {[%clk 0:01:12]}  Rxe6 {[%clk 0:01:09]} 26. dxe6 {[%clk 0:01:11]}  Bxf4+ {[%clk 0:01:09]} 27. Ke2 {[%clk 0:01:06]}  Ne5 {[%clk 0:01:05]} 28. Rgf1 {[%clk 0:00:32]}  Bxh2 {[%clk 0:01:01]} 29. e7 {[%clk 0:00:30]}  Re6 {[%clk 0:00:55]} 30. Rxf5 {[%clk 0:00:28]}  Rxe7 {[%clk 0:00:53]} 31. Raf1 {[%clk 0:00:25]}  Bc6 {[%clk 0:00:39]} 32. Nb6 {[%clk 0:00:23]}  Kg8 {[%clk 0:00:34]} 33. Kd2 {[%clk 0:00:19]}  Ng6 {[%clk 0:00:26]} 34. b3 {[%clk 0:00:14]}  Be5 {[%clk 0:00:26]} 35. Bxe5 {[%clk 0:00:13]}  dxe5 {[%clk 0:00:26]} 36. Rf6 {[%clk 0:00:10]}  Bb7 {[%clk 0:00:24]} 37. Nd5 {[%clk 0:00:05]}  Rd7 {[%clk 0:00:24]} 38. Ke3 {[%clk 0:00:04]}  Bxd5 {[%clk 0:00:23]} 39. cxd5 {[%clk 0:00:00]}  Rxd5 {[%clk 0:00:24]} 0-1


[Site "https://www.chess.com"]

[Event "Titled Tuesday Blitz July 4 Late 2023"]
[White "Hartikainen, Jarmo"]
[Black "Sukandar, Irine Kharisma"]
[WhiteFideId "503134"]
[BlackFideId "7101937"]
[WhiteElo "2162"]
[BlackElo "2412"]
[Result "0-1"]
[Round "4"]
[TimeControl "180+2"]
[Date "2023.07.04"]
[WhiteClock "0:00:13"]
[BlackClock "0:00:39"]
[Board "167"]

1. e4 {[%clk 0:03:00]}  c5 {[%clk 0:02:59]} 2. c3 {[%clk 0:03:00]}  g6 {[%clk 0:02:55]} 3. d4 {[%clk 0:02:59]}  cxd4 {[%clk 0:02:56]} 4. cxd4 {[%clk 0:03:00]}  d5 {[%clk 0:02:56]} 5. e5 {[%clk 0:02:48]}  Bg7 {[%clk 0:02:55]} 6. Bd3 {[%clk 0:02:43]}  Nc6 {[%clk 0:02:54]} 7. Be3 {[%clk 0:02:33]}  Qb6 {[%clk 0:02:52]} 8. Qd2 {[%clk 0:02:30]}  Bd7 {[%clk 0:02:43]} 9. Nc3 {[%clk 0:02:27]}  e6 {[%clk 0:02:41]} 10. Nge2 {[%clk 0:02:26]}  a6 {[%clk 0:02:39]} 11. O-O {[%clk 0:02:24]}  Nge7 {[%clk 0:02:38]} 12. Rac1 {[%clk 0:02:11]}  O-O {[%clk 0:02:37]} 13. Bb1 {[%clk 0:01:35]}  Rfc8 {[%clk 0:02:30]} 14. g4 {[%clk 0:01:32]}  Na5 {[%clk 0:02:24]} 15. b3 {[%clk 0:01:22]}  Qd8 {[%clk 0:02:23]} 16. Bh6 {[%clk 0:01:15]}  Bh8 {[%clk 0:02:10]} 17. f4 {[%clk 0:01:15]}  b5 {[%clk 0:02:09]} 18. Ng3 {[%clk 0:01:11]}  b4 {[%clk 0:02:08]} 19. Nce2 {[%clk 0:01:11]}  Rxc1 {[%clk 0:01:54]} 20. Rxc1 {[%clk 0:01:10]}  Qb6 {[%clk 0:01:45]} 21. h4 {[%clk 0:01:07]}  Rc8 {[%clk 0:01:42]} 22. Rxc8+ {[%clk 0:01:03]}  Bxc8 {[%clk 0:01:35]} 23. h5 {[%clk 0:01:04]}  Nac6 {[%clk 0:01:28]} 24. hxg6 {[%clk 0:01:02]}  fxg6 {[%clk 0:01:27]} 25. f5 {[%clk 0:00:50]}  Bxe5 {[%clk 0:01:25]} 26. fxg6 {[%clk 0:00:48]}  hxg6 {[%clk 0:01:24]} 27. Be3 {[%clk 0:00:40]}  Bg7 {[%clk 0:01:11]} 28. Kg2 {[%clk 0:00:32]}  Bb7 {[%clk 0:01:05]} 29. Nf4 {[%clk 0:00:29]}  Bxd4 {[%clk 0:00:59]} 30. Nf1 {[%clk 0:00:22]}  Bxe3 {[%clk 0:00:55]} 31. Nxe3 {[%clk 0:00:22]}  d4 {[%clk 0:00:48]} 32. Nxg6 {[%clk 0:00:17]}  dxe3 {[%clk 0:00:43]} 33. Qd3 {[%clk 0:00:17]}  Ne5+ {[%clk 0:00:42]} 34. Kg3 {[%clk 0:00:16]}  Nxd3 {[%clk 0:00:40]} 35. Nxe7+ {[%clk 0:00:16]}  Kf7 {[%clk 0:00:40]} 36. Bxd3 {[%clk 0:00:13]}  Qd6+ {[%clk 0:00:39]} 0-1


[Site "https://www.chess.com"]

[Event "Titled Tuesday Blitz July 4 Late 2023"]
[White "Romero Arzuaga, Yudel"]
[Black "Oliveira, Tiago Batista"]
[WhiteFideId "3521010"]
[BlackFideId "2108291"]
[WhiteElo "2360"]
[BlackElo "2152"]
[Result "1-0"]
[Round "4"]
[TimeControl "180+2"]
[Date "2023.07.04"]
[WhiteClock "0:00:30"]
[BlackClock "0:00:00"]
[Board "169"]

1. d4 {[%clk 0:03:00]}  Nf6 {[%clk 0:02:52]} 2. Nf3 {[%clk 0:02:59]}  g6 {[%clk 0:02:51]} 3. Bf4 {[%clk 0:02:58]}  d6 {[%clk 0:02:49]} 4. e3 {[%clk 0:02:59]}  Bg7 {[%clk 0:02:49]} 5. h3 {[%clk 0:02:59]}  O-O {[%clk 0:02:50]} 6. Be2 {[%clk 0:03:00]}  Nbd7 {[%clk 0:02:49]} 7. O-O {[%clk 0:03:00]}  Re8 {[%clk 0:02:50]} 8. c3 {[%clk 0:02:59]}  e5 {[%clk 0:02:49]} 9. dxe5 {[%clk 0:02:59]}  dxe5 {[%clk 0:02:49]} 10. Nxe5 {[%clk 0:02:54]}  Nh5 {[%clk 0:02:42]} 11. Bxh5 {[%clk 0:02:44]}  Nxe5 {[%clk 0:02:42]} 12. Be2 {[%clk 0:02:39]}  Qe7 {[%clk 0:02:28]} 13. Nd2 {[%clk 0:02:36]}  Bf5 {[%clk 0:02:24]} 14. Nf3 {[%clk 0:02:34]}  Rad8 {[%clk 0:02:23]} 15. Qa4 {[%clk 0:02:32]}  b5 {[%clk 0:02:12]} 16. Qa6 {[%clk 0:02:10]}  Nxf3+ {[%clk 0:02:09]} 17. Bxf3 {[%clk 0:02:10]}  Bd3 {[%clk 0:02:08]} 18. Rfd1 {[%clk 0:02:07]}  c5 {[%clk 0:02:00]} 19. Bc6 {[%clk 0:01:59]}  Rf8 {[%clk 0:01:58]} 20. Bxb5 {[%clk 0:01:57]}  Be4 {[%clk 0:01:42]} 21. Be2 {[%clk 0:01:45]}  Bc2 {[%clk 0:01:21]} 22. Rxd8 {[%clk 0:01:41]}  Rxd8 {[%clk 0:01:20]} 23. Bf3 {[%clk 0:01:40]}  Bd3 {[%clk 0:00:44]} 24. Qa3 {[%clk 0:01:25]}  g5 {[%clk 0:00:19]} 25. Bg3 {[%clk 0:01:23]}  f5 {[%clk 0:00:19]} 26. Rd1 {[%clk 0:01:16]}  Kh8 {[%clk 0:00:10]} 27. Qa4 {[%clk 0:00:43]}  Rd7 {[%clk 0:00:08]} 28. Rd2 {[%clk 0:00:39]}  c4 {[%clk 0:00:07]} 29. Qd1 {[%clk 0:00:37]}  Qd8 {[%clk 0:00:07]} 30. Bc6 {[%clk 0:00:35]}  Re7 {[%clk 0:00:05]} 31. Bf3 {[%clk 0:00:32]}  Qb6 {[%clk 0:00:05]} 32. Be2 {[%clk 0:00:31]}  Rd7 {[%clk 0:00:04]} 33. Bxd3 {[%clk 0:00:31]}  cxd3 {[%clk 0:00:05]} 34. Rxd3 {[%clk 0:00:30]}  Rxd3 {[%clk 0:00:00]} 35. Qxd3 {[%clk 0:00:30]} 1-0


[Site "https://www.chess.com"]

[Event "Titled Tuesday Blitz July 4 Late 2023"]
[White "Zampronha, Wladimir Camilo"]
[Black "Horokoskii"]
[WhiteFideId "2103087"]
[WhiteElo "2279"]
[BlackElo "2071"]
[Result "1-0"]
[Round "4"]
[TimeControl "180+2"]
[Date "2023.07.04"]
[WhiteClock "0:00:19"]
[BlackClock "0:00:01"]
[Board "173"]

1. e4 {[%clk 0:03:00]}  e6 {[%clk 0:02:52]} 2. d4 {[%clk 0:03:00]}  d5 {[%clk 0:02:51]} 3. Nc3 {[%clk 0:03:01]}  Nf6 {[%clk 0:02:51]} 4. e5 {[%clk 0:03:01]}  Nfd7 {[%clk 0:02:51]} 5. f4 {[%clk 0:03:01]}  c5 {[%clk 0:02:52]} 6. Nf3 {[%clk 0:03:02]}  Nc6 {[%clk 0:02:52]} 7. Be3 {[%clk 0:03:02]}  a6 {[%clk 0:02:53]} 8. Qd2 {[%clk 0:03:02]}  b5 {[%clk 0:02:52]} 9. dxc5 {[%clk 0:03:02]}  Bxc5 {[%clk 0:02:52]} 10. Bxc5 {[%clk 0:03:01]}  Nxc5 {[%clk 0:02:53]} 11. Qf2 {[%clk 0:03:01]}  Qb6 {[%clk 0:02:35]} 12. Bd3 {[%clk 0:03:01]}  b4 {[%clk 0:02:30]} 13. Ne2 {[%clk 0:03:01]}  a5 {[%clk 0:02:30]} 14. O-O {[%clk 0:02:58]}  Ba6 {[%clk 0:02:29]} 15. Bxa6 {[%clk 0:02:57]}  Rxa6 {[%clk 0:02:30]} 16. Ned4 {[%clk 0:02:56]}  Ne4 {[%clk 0:02:23]} 17. Qe3 {[%clk 0:02:56]}  O-O {[%clk 0:02:18]} 18. Rfe1 {[%clk 0:02:55]}  Rc8 {[%clk 0:02:15]} 19. Re2 {[%clk 0:02:53]}  Ra7 {[%clk 0:02:07]} 20. f5 {[%clk 0:02:43]}  Nxd4 {[%clk 0:01:59]} 21. Nxd4 {[%clk 0:02:40]}  Rc4 {[%clk 0:01:47]} 22. Rd1 {[%clk 0:02:34]}  Rac7 {[%clk 0:01:40]} 23. f6 {[%clk 0:02:23]}  gxf6 {[%clk 0:01:17]} 24. exf6 {[%clk 0:02:23]}  e5 {[%clk 0:00:54]} 25. Nf5 {[%clk 0:02:10]}  Qxe3+ {[%clk 0:00:50]} 26. Rxe3 {[%clk 0:02:09]}  Nxf6 {[%clk 0:00:44]} 27. Rxe5 {[%clk 0:01:59]}  Rxc2 {[%clk 0:00:42]} 28. Ne7+ {[%clk 0:01:49]}  Kf8 {[%clk 0:00:36]} 29. Nxd5 {[%clk 0:01:49]}  Nxd5 {[%clk 0:00:36]} 30. Rexd5 {[%clk 0:01:49]}  Rxb2 {[%clk 0:00:36]} 31. Rxa5 {[%clk 0:01:46]}  Rcc2 {[%clk 0:00:36]} 32. Rg5 {[%clk 0:01:45]}  Rxa2 {[%clk 0:00:34]} 33. h3 {[%clk 0:01:41]}  b3 {[%clk 0:00:34]} 34. Kh2 {[%clk 0:01:36]}  b2 {[%clk 0:00:31]} 35. Rd8+ {[%clk 0:01:36]}  Ke7 {[%clk 0:00:31]} 36. Rb8 {[%clk 0:01:37]}  h6 {[%clk 0:00:16]} 37. Rg3 {[%clk 0:01:33]}  Ra1 {[%clk 0:00:13]} 38. Rgb3 {[%clk 0:01:32]}  Ra2 {[%clk 0:00:13]} 39. R8b7+ {[%clk 0:01:26]}  Kf6 {[%clk 0:00:13]} 40. R7b6+ {[%clk 0:01:27]}  Kg7 {[%clk 0:00:13]} 41. Rg3+ {[%clk 0:01:26]}  Kf8 {[%clk 0:00:12]} 42. Rb7 {[%clk 0:01:24]}  Rc1 {[%clk 0:00:10]} 43. Rgb3 {[%clk 0:01:22]}  Rc2 {[%clk 0:00:09]} 44. Rg3 {[%clk 0:00:42]}  Rd2 {[%clk 0:00:06]} 45. Rb8+ {[%clk 0:00:37]}  Ke7 {[%clk 0:00:06]} 46. Rb7+ {[%clk 0:00:38]}  Ke6 {[%clk 0:00:06]} 47. Rb6+ {[%clk 0:00:38]}  Ke5 {[%clk 0:00:05]} 48. Rb8 {[%clk 0:00:31]}  Rc2 {[%clk 0:00:03]} 49. Rb7 {[%clk 0:00:29]}  Ke6 {[%clk 0:00:03]} 50. Rb6+ {[%clk 0:00:29]}  Ke7 {[%clk 0:00:03]} 51. Re3+ {[%clk 0:00:28]}  Kf8 {[%clk 0:00:02]} 52. Rg3 {[%clk 0:00:29]}  Ra1 {[%clk 0:00:02]} 53. Rb8+ {[%clk 0:00:27]}  Ke7 {[%clk 0:00:01]} 54. Re3+ {[%clk 0:00:28]}  Kf6 {[%clk 0:00:01]} 55. Reb3 {[%clk 0:00:29]}  Kg7 {[%clk 0:00:02]} 56. Rxb2 {[%clk 0:00:29]}  Rxb2 {[%clk 0:00:03]} 57. Rxb2 {[%clk 0:00:28]}  Ra6 {[%clk 0:00:04]} 58. Rb3 {[%clk 0:00:29]}  Rg6 {[%clk 0:00:04]} 59. Rf3 {[%clk 0:00:29]}  Rf6 {[%clk 0:00:05]} 60. Re3 {[%clk 0:00:29]}  Rg6 {[%clk 0:00:05]} 61. Rd3 {[%clk 0:00:29]}  Ra6 {[%clk 0:00:06]} 62. h4 {[%clk 0:00:28]}  Rb6 {[%clk 0:00:07]} 63. Kh3 {[%clk 0:00:29]}  Rb4 {[%clk 0:00:07]} 64. Ra3 {[%clk 0:00:28]}  Rc4 {[%clk 0:00:07]} 65. Ra5 {[%clk 0:00:28]}  Rb4 {[%clk 0:00:08]} 66. Rc5 {[%clk 0:00:28]}  Ra4 {[%clk 0:00:08]} 67. Rc3 {[%clk 0:00:27]}  Rd4 {[%clk 0:00:08]} 68. Rg3+ {[%clk 0:00:27]}  Kh7 {[%clk 0:00:08]} 69. Rf3 {[%clk 0:00:27]}  Kg7 {[%clk 0:00:08]} 70. g3 {[%clk 0:00:27]}  Rc4 {[%clk 0:00:08]} 71. Rd3 {[%clk 0:00:27]}  Rb4 {[%clk 0:00:08]} 72. Kg2 {[%clk 0:00:26]}  Ra4 {[%clk 0:00:08]} 73. Kf3 {[%clk 0:00:27]}  Rb4 {[%clk 0:00:08]} 74. Re3 {[%clk 0:00:27]}  Ra4 {[%clk 0:00:09]} 75. Re4 {[%clk 0:00:27]}  Ra3+ {[%clk 0:00:09]} 76. Kg4 {[%clk 0:00:27]}  Ra5 {[%clk 0:00:09]} 77. Rf4 {[%clk 0:00:27]}  Rb5 {[%clk 0:00:09]} 78. Rf5 {[%clk 0:00:25]}  h5+ {[%clk 0:00:05]} 79. Rxh5 {[%clk 0:00:23]}  Rb4+ {[%clk 0:00:05]} 80. Kh3 {[%clk 0:00:22]}  f6 {[%clk 0:00:05]} 81. Rc5 {[%clk 0:00:22]}  Rb1 {[%clk 0:00:05]} 82. Rc3 {[%clk 0:00:21]}  Kg6 {[%clk 0:00:05]} 83. Rc8 {[%clk 0:00:21]}  Ra1 {[%clk 0:00:06]} 84. Rg8+ {[%clk 0:00:22]}  Kf7 {[%clk 0:00:06]} 85. Rg4 {[%clk 0:00:22]}  Ra5 {[%clk 0:00:06]} 86. Rf4 {[%clk 0:00:22]}  Kg6 {[%clk 0:00:06]} 87. Kg4 {[%clk 0:00:21]}  Rb5 {[%clk 0:00:05]} 88. h5+ {[%clk 0:00:20]}  Kh6 {[%clk 0:00:03]} 89. Rxf6+ {[%clk 0:00:19]}  Kg7 {[%clk 0:00:03]} 90. Rf5 {[%clk 0:00:18]}  Rb4+ {[%clk 0:00:03]} 91. Kg5 {[%clk 0:00:18]}  Rb3 {[%clk 0:00:03]} 92. g4 {[%clk 0:00:18]}  Rb6 {[%clk 0:00:03]} 93. Ra5 {[%clk 0:00:18]}  Rc6 {[%clk 0:00:03]} 94. Ra7+ {[%clk 0:00:18]}  Kh8 {[%clk 0:00:03]} 95. h6 {[%clk 0:00:18]}  Rc5+ {[%clk 0:00:03]} 96. Kh4 {[%clk 0:00:18]}  Rc6 {[%clk 0:00:03]} 97. g5 {[%clk 0:00:18]}  Rc4+ {[%clk 0:00:04]} 98. Kh5 {[%clk 0:00:19]}  Rc1 {[%clk 0:00:04]} 99. Ra6 {[%clk 0:00:19]}  Rh1+ {[%clk 0:00:01]} 100. Kg6 {[%clk 0:00:19]} 1-0


[Site "https://www.chess.com"]

[Event "Titled Tuesday Blitz July 4 Late 2023"]
[White "Schut, Han"]
[Black "Tqebuchava, Zurab"]
[WhiteFideId "1005561"]
[BlackFideId "13601113"]
[WhiteElo "2277"]
[BlackElo "2066"]
[Result "1-0"]
[Round "4"]
[TimeControl "180+2"]
[Date "2023.07.04"]
[WhiteClock "0:00:28"]
[BlackClock "0:00:00"]
[Board "174"]

1. e4 {[%clk 0:02:58]}  d6 {[%clk 0:02:58]} 2. d4 {[%clk 0:02:58]}  g6 {[%clk 0:02:58]} 3. Nc3 {[%clk 0:02:58]}  Bg7 {[%clk 0:02:58]} 4. f4 {[%clk 0:02:59]}  c5 {[%clk 0:02:57]} 5. dxc5 {[%clk 0:02:51]}  Qa5 {[%clk 0:02:56]} 6. Bd2 {[%clk 0:02:17]}  Qxc5 {[%clk 0:02:54]} 7. Nf3 {[%clk 0:02:14]}  Nf6 {[%clk 0:02:44]} 8. Bd3 {[%clk 0:02:10]}  O-O {[%clk 0:02:40]} 9. Qe2 {[%clk 0:02:09]}  Bg4 {[%clk 0:02:34]} 10. Be3 {[%clk 0:02:07]}  Qa5 {[%clk 0:02:29]} 11. O-O {[%clk 0:02:04]}  Nc6 {[%clk 0:02:19]} 12. h3 {[%clk 0:02:02]}  Bxf3 {[%clk 0:02:19]} 13. Qxf3 {[%clk 0:02:02]}  Rac8 {[%clk 0:02:11]} 14. a3 {[%clk 0:01:55]}  Nd7 {[%clk 0:02:00]} 15. b4 {[%clk 0:01:32]}  Qd8 {[%clk 0:01:42]} 16. Bd2 {[%clk 0:01:31]}  Nxb4 {[%clk 0:01:15]} 17. axb4 {[%clk 0:01:23]}  Bxc3 {[%clk 0:01:14]} 18. Bxc3 {[%clk 0:01:24]}  Rxc3 {[%clk 0:01:13]} 19. Kh1 {[%clk 0:01:13]}  Qb6 {[%clk 0:01:09]} 20. Rab1 {[%clk 0:01:05]}  Qd4 {[%clk 0:01:02]} 21. e5 {[%clk 0:00:55]}  dxe5 {[%clk 0:00:56]} 22. Qxb7 {[%clk 0:00:55]}  exf4 {[%clk 0:00:44]} 23. Rbd1 {[%clk 0:00:49]}  Nf6 {[%clk 0:00:09]} 24. Bxg6 {[%clk 0:00:44]}  Qe5 {[%clk 0:00:08]} 25. Bd3 {[%clk 0:00:37]}  Rfc8 {[%clk 0:00:06]} 26. Qf3 {[%clk 0:00:33]}  Kh8 {[%clk 0:00:05]} 27. Qxf4 {[%clk 0:00:32]}  Qxf4 {[%clk 0:00:05]} 28. Rxf4 {[%clk 0:00:32]}  Rb8 {[%clk 0:00:04]} 29. Re1 {[%clk 0:00:32]}  Nd5 {[%clk 0:00:03]} 30. Rd4 {[%clk 0:00:30]}  Nxb4 {[%clk 0:00:03]} 31. Rxe7 {[%clk 0:00:30]}  Nxd3 {[%clk 0:00:02]} 32. cxd3 {[%clk 0:00:30]}  Rc1+ {[%clk 0:00:02]} 33. Kh2 {[%clk 0:00:30]}  Rc2 {[%clk 0:00:02]} 34. Rxf7 {[%clk 0:00:28]}  Rbb2 {[%clk 0:00:00]} 35. Rg4 {[%clk 0:00:28]} 1-0


[Site "https://www.chess.com"]